bitfinex-derivatives/quotes_ETHF0:USTF0_20210405
["timestamp","ask_amount","ask_price","bid_price","bid_amount"]
[1617663930289,34.89255,2101.4,2101.2,11.8819]
[1617663930290,68.2764,2101.3,2101.2,11.8819]
[1617663930487,98.2764,2101.3,2101.2,11.8819]
[1617663930687,98.2764,2101.3,2101.1,13.9308]
[1617663931488,98.2764,2101.3,2101.1,3.9909]
[1617663932095,98.2764,2101.3,2101.1,0.0001]
[1617663932293,98.2764,2101.3,2098.1,32.0]
[1617663932993,98.2764,2101.3,2099.3,2.90695]
[1617663933395,98.2764,2101.3,2099.4,5.97]
[1617663935094,2.90695,2099.5,2099.4,5.97]
[1617663936095,2.90695,2099.5,2098.4,5.81]
[1617663936295,79.997,2099.4,2098.1,2.0]
[1617663936494,79.997,2099.4,2098.5,2.0]
[1617663936695,79.997,2099.4,2098.5,7.71]
[1617663936897,79.997,2099.4,2098.5,32.0]
[1617663937094,0.9451,2100.5,2099.3,2.90695]
[1617663937297,60.0277,2100.5,2099.3,5.65335]
[1617663937495,60.0277,2100.5,2099.4,5.78]
[1617663937694,60.0277,2100.5,2099.5,2.0]
[1617663938094,60.0277,2100.5,2099.6,5.71]
[1617663938994,2.90695,2100.0,2099.9,2.90695]
[1617663939194,2.90695,2100.0,2099.9,5.45715]
[1617663939595,2.90695,2100.0,2099.9,11.21715]
[1617663939997,60.0277,2100.5,2099.9,11.21715]
[1617663940798,60.0277,2100.5,2100.0,13.499]
[1617663940997,2.90695,2100.1,2100.0,13.499]
[1617663941597,2.90695,2100.1,2100.0,19.319]
[1617663941799,2.90695,2100.1,2100.0,17.8906]
[1617663944098,2.90695,2100.1,2100.0,17.5672]
[1617663945999,2.90695,2100.1,2100.0,15.6043]
[1617663946800,60.0277,2100.5,2100.0,18.0394]
[1617663947202,2.90695,2100.4,2100.0,18.0394]
[1617663947401,2.90695,2100.4,2100.3,5.71]
[1617663947801,2.90695,2100.4,2100.0,12.2194]
[1617663947802,60.4337,2101.5,2100.1,5.91]
[1617663948001,1.43048555,2100.3,2100.1,30.0]
[1617663948202,8.555e-05,2100.3,2100.1,30.0]
[1617663948401,60.4337,2101.5,2100.2,5.81]
[1617663948803,60.4337,2101.5,2100.2,35.81]
[1617663949203,2.90695,2100.8,2100.5,2.90695]
[1617663949404,2.90695,2100.8,2100.5,6.96685]
[1617663949607,2.90695,2100.8,2100.6,5.87]
[1617663949806,60.4337,2101.5,2100.6,5.87]
[1617663951206,60.4337,2101.5,2100.9,2.90695]
[1617663951610,60.4337,2101.5,2101.0,5.76]
[1617663952209,61.39,2101.5,2101.0,5.76]
[1617663952411,61.39,2101.5,2100.6,5.99]
[1617663952609,61.39,2101.5,2101.1,5.51]
[1617663952610,63.1174,2101.5,2101.1,5.51]
[1617663953009,2.0,2101.4,2100.7,5.91]
[1617663953210,2.90695,2100.8,2100.2,5.82]
[1617663953411,4.97695,2100.8,2099.7,2.90695]
[1617663953611,4.97695,2100.8,2100.3,5.75]
[1617663954011,4.97695,2100.8,2099.8,5.71]
[1617663954212,4.97695,2100.8,2100.4,5.83]
[1617663954410,2.90695,2100.8,2100.4,5.83]
[1617663954612,2.90695,2100.8,2100.0,2.307]
[1617663954812,2.90695,2100.8,2100.5,5.86]
[1617663955011,2.90695,2100.8,2100.5,7.9404]
[1617663955216,2.90695,2100.8,2100.5,2.0804]
[1617663955419,2.90695,2100.8,2100.6,5.79]
[1617663956620,2.90695,2100.8,2100.2,5.94]
[1617663957018,2.90695,2100.8,2100.7,5.12]
[1617663957217,2.90695,2100.8,2100.3,5.78]
[1617663957617,2.90695,2100.8,2100.7,4.64]
[1617663957817,2.90695,2100.8,2100.4,5.86]
[1617663958218,2.90695,2100.8,2100.7,4.89]
[1617663958417,2.90695,2100.8,2100.5,5.02]
[1617663958817,2.90695,2100.8,2100.0,32.0]
[1617663958818,2.90695,2100.8,2100.7,5.14]
[1617663959018,2.90695,2100.8,2100.7,1.7823]
[1617663959218,2.90695,2101.1,2100.7,4.68925]
[1617663959419,2.90695,2101.1,2100.7,10.58925]
[1617663959624,2.90695,2101.1,2100.8,2.0]
[1617663959920,2.90695,2101.1,2100.9,5.79]
[1617663960118,2.90695,2101.1,2101.0,2.0]
[1617663960621,2.90695,2101.1,2101.0,7.74]
[1617663961219,2.90695,2101.1,2101.0,10.64695]
[1617663961519,2.90695,2101.1,2101.0,8.64695]
[1617663962520,2.90695,2101.1,2101.0,10.64695]
[1617663962920,2.90695,2101.1,2101.0,8.64695]
[1617663963621,0.02700406,2101.4,2101.0,10.50935]
[1617663963822,0.02703154,2101.2,2101.0,40.50935]
[1617663964021,0.02703154,2101.2,2101.0,10.50935]
[1617663964222,0.02704496,2101.4,2101.0,10.50935]
[1617663964622,0.02705068,2101.5,2101.1,2.0]
[1617663965022,0.02705068,2101.5,2101.2,5.83]
[1617663965221,0.02705068,2101.5,2101.4,4.90695]
[1617663965622,0.02705068,2101.5,2101.4,10.72695]
[1617663965822,0.02705068,2101.5,2101.4,40.72695]
[1617663966022,0.27059206,2101.9,2101.4,40.72695]
[1617663966221,0.27059206,2101.9,2101.4,10.72695]
[1617663966424,0.27066832,2102.0,2101.4,10.72695]
[1617663966621,0.27066832,2102.0,2101.4,40.72695]
[1617663967021,0.27066832,2102.0,2101.4,10.72695]
[1617663967222,0.27066832,2102.0,2101.9,2.90695]
[1617663967421,0.27066832,2102.0,2101.9,6.80815]
[1617663967623,0.27064471,2102.1,2101.9,12.72815]
[1617663968228,0.27064471,2102.1,2101.9,10.72815]
[1617663970427,0.27064471,2102.1,2101.9,7.8212]
[1617663970628,0.27064533,2102.0,2101.9,5.92]
[1617663971029,0.43294991,2102.0,2100.4,5.87]
[1617663971429,0.43294991,2102.0,2101.9,5.73]
[1617663971629,0.43294991,2102.0,2101.5,2.0]
[1617663971829,0.43294991,2102.0,2101.6,5.83]
[1617663972030,0.43294991,2102.0,2101.9,5.99]
[1617663972429,0.4330165,2102.1,2101.8,2.47]
[1617663972632,0.4330165,2102.1,2101.9,5.99]
[1617663972830,0.27067075,2102.0,2101.7,2.0]
[1617663973029,0.27067075,2102.0,2101.8,5.73]
[1617663973229,0.27067075,2102.0,2101.9,8.72695]
[1617663973730,0.27067075,2102.0,2101.9,32.90695]
[1617663973931,0.84418521,2102.0,2101.9,43.34745]
[1617663974630,0.86929171,2102.1,2101.9,43.34745]
[1617663975632,1.08661464,2102.3,2101.9,43.34745]
[1617663975833,0.4349488,2102.0,2101.9,43.34745]
[1617663976433,0.4349488,2102.0,2101.9,11.34745]
[1617663976631,0.4349488,2102.0,2101.9,8.86695]
[1617663976632,0.65220865,2102.0,2101.9,8.86695]
[1617663977133,0.65220865,2102.0,2101.9,40.86695]
[1617663977333,0.65236437,2102.1,2101.9,40.86695]
[1617663977533,0.65236437,2102.1,2101.9,42.91515]
[1617663977733,1.4963584,2102.0,2101.9,42.91515]
[1617663977933,0.65238171,2102.1,2101.9,12.91515]
[1617663978335,0.65230864,2102.0,2101.9,12.91515]
[1617663978536,0.65230864,2102.0,2101.9,10.86695]
[1617663979135,0.65229381,2102.1,2101.9,40.86695]
[1617663979334,0.65229381,2102.1,2101.9,42.61815]
[1617663979536,2.90695,2102.4,2101.9,42.61815]
[1617663979537,0.65246169,2102.2,2101.9,42.61815]
[1617663979935,0.65252556,2102.3,2101.9,42.61815]
[1617663980134,1.0875426,2102.7,2101.9,42.61815]
[1617663980734,1.08791322,2102.8,2101.9,42.61815]
[1617663981036,1.08851937,2103.0,2101.9,42.61815]
[1617663981237,3.99546937,2103.0,2102.9,2.90695]
[1617663981638,3.99546937,2103.0,2102.9,8.88695]
[1617663981639,1.08851937,2103.0,2102.9,8.88695]
[1617663981837,1.90763019,2103.2,2102.9,8.88695]
[1617663982136,1.08865422,2103.0,2102.9,8.88695]
[1617663983638,1.08929532,2103.1,2102.9,8.88695]
[1617663983941,1.08923556,2103.0,2102.9,8.88695]
[1617663984641,12.20013401,2103.7,2102.9,8.88695]
[1617663984642,1.08847816,2103.1,2102.9,8.88695]
[1617663985242,3.99542816,2103.1,2102.9,8.88695]
[1617663985441,1.08814398,2103.0,2102.9,8.88695]
[1617663985841,1.08603466,2103.5,2102.9,8.88695]
[1617663986543,2.11305,2102.7,2102.5,1.7966]
[1617663986842,2.11305,2102.7,2102.6,5.72]
[1617663987244,2.11305,2102.7,2102.6,8.62695]
[1617663987943,2.11305,2102.7,2102.6,10.62695]
[1617663988143,2.11305,2102.7,2102.6,40.62695]
[1617663990747,2.11305,2102.7,2102.6,53.95335]
[1617663990947,2.11305,2102.7,2102.6,67.16575]
[1617663992447,0.08265,2102.7,2102.6,67.16575]
[1617663993550,5e-05,2102.7,2102.6,67.16575]
[1617663996551,5e-05,2102.7,2102.6,35.16575]
[1617663996752,5e-05,2102.7,2102.6,32.2588]
[1617663997554,2.907,2102.7,2102.6,35.16575]
[1617663998551,2.907,2102.7,2102.6,29.84655]
[1617663998751,2.907,2102.7,2102.6,26.9396]
[1617663999652,2.907,2102.7,2102.6,26.8235]
[1617664006855,3.77258534,2102.7,2102.6,26.8235]
[1617664007256,2.907,2102.7,2102.6,26.8235]
[1617664009557,5.5955,2102.7,2102.6,26.8235]
[1617664009959,5.5955,2102.7,2102.6,26.7203]
[1617664010158,5.5955,2102.7,2102.6,25.9908]
[1617664010356,6.67590288,2102.7,2102.6,31.7208]
[1617664010758,6.67590288,2102.7,2102.6,31.436]
[1617664010957,6.67590288,2102.7,2102.6,31.3556]
[1617664011359,5.5955,2102.7,2102.6,30.6354]
[1617664011557,2.907,2102.7,2102.6,27.5429]
[1617664012357,2.907,2102.7,2102.6,26.7923]
[1617664012559,2.907,2102.7,2102.6,26.0789]
[1617664012757,2.907,2102.7,2102.6,18.9424]
[1617664013158,2.907,2102.7,2102.6,18.2333]
[1617664013357,2.907,2102.7,2102.6,17.5264]
[1617664013559,5.2991,2102.7,2102.6,5.73]
[1617664013758,5.2991,2102.7,2102.6,4.8521]
[1617664013958,5.2991,2102.7,2101.7,5.75]
[1617664014358,5.2991,2102.7,2102.6,5.83]
[1617664014559,5.2991,2102.7,2101.8,5.86]
[1617664014958,2.907,2102.7,2102.6,5.83]
[1617664015163,2.907,2102.7,2101.9,5.74]
[1617664015164,0.86418722,2102.4,2101.9,5.74]
[1617664015561,0.86418722,2102.4,2101.3,2.1531]
[1617664015562,2.90695,2102.0,2101.8,2.90695]
[1617664015961,2.90695,2102.0,2101.9,5.79]
[1617664016261,3.84785,2102.0,2101.9,5.79]
[1617664016660,2.90695,2102.0,2101.9,5.79]
[1617664016860,0.86450952,2102.5,2101.9,5.79]
[1617664017061,0.86482592,2102.7,2101.9,7.6857]
[1617664017462,5e-05,2102.7,2101.9,9.6857]
[1617664017664,5e-05,2102.7,2102.6,2.90695]
[1617664018061,5e-05,2102.7,2102.6,8.76695]
[1617664018561,0.81524542,2102.7,2102.6,8.76695]
[1617664018962,5e-05,2102.7,2102.6,8.76695]
[1617664019563,2.907,2102.7,2102.6,8.76695]
[1617664019963,2.907,2102.7,2102.6,5.86]
[1617664020565,2.907,2102.7,2102.0,5.91]
[1617664020966,2.907,2102.7,2102.6,5.79]
[1617664021167,2.907,2102.7,2102.3,2.8194]
[1617664021565,2.907,2102.7,2102.6,8.61695]
[1617664021766,2.907,2102.7,2102.6,2.90695]
[1617664022168,2.907,2102.7,2102.6,8.76695]
[1617664022567,5e-05,2102.7,2102.6,8.76695]
[1617664022967,5e-05,2102.7,2102.6,40.76695]
[1617664023668,5e-05,2102.7,2102.6,106.41595]
[1617664025769,5e-05,2102.7,2102.6,104.41595]
[1617664025969,5e-05,2102.7,2102.6,106.41595]
[1617664026671,5e-05,2102.7,2102.6,8.76695]
[1617664027671,4.789,2102.7,2102.6,8.76695]
[1617664028471,66.8925,2102.7,2102.6,8.76695]
[1617664028671,66.8925,2102.7,2102.6,5.86]
[1617664029072,66.8925,2102.7,2102.6,0.0538]
[1617664029272,66.8925,2102.7,2102.0,5.93]
[1617664029672,63.98555,2102.7,2102.6,5.98]
[1617664029871,63.98555,2102.7,2102.0,5.98]
[1617664030072,0.81366536,2102.6,2102.0,5.98]
[1617664030274,0.81366536,2102.6,2101.9,12.7345]
[1617664030478,0.86604061,2102.5,2102.0,5.83]
[1617664031078,0.86593221,2102.4,2102.0,5.83]
[1617664031274,1.82093221,2102.4,2102.0,5.83]
[1617664031675,0.81532882,2102.3,2102.0,5.83]
[1617664031875,2.90695,2102.1,2102.0,5.83]
[1617664032076,5.65305,2102.1,2102.0,5.83]
[1617664032778,5.65305,2102.1,2102.0,4.8752]
[1617664033080,5.65305,2102.1,2102.0,0.6023]
[1617664033278,5.65305,2102.1,2101.9,12.3968]
[1617664033479,1.67880639,2102.0,2101.9,12.3968]
[1617664033879,0.81413421,2102.0,2101.9,12.3968]
[1617664034078,79.40973421,2102.0,2101.9,18.1568]
[1617664034680,80.53545268,2102.0,2101.9,18.1568]
[1617664035078,81.40020017,2102.0,2101.9,18.1568]
[1617664035278,79.40973421,2102.0,2101.9,18.1568]
[1617664035779,79.40973421,2102.0,2101.9,17.9202]
[1617664036178,80.27483668,2102.0,2101.9,17.9202]
[1617664037879,79.40973421,2102.0,2101.9,17.9202]
[1617664038279,80.27456836,2102.0,2101.9,17.9202]
[1617664038480,1.67896836,2102.0,2101.9,17.9202]
[1617664038880,1.67896836,2102.0,2101.9,17.6795]
[1617664039080,1.67896836,2102.0,2101.9,14.0596]
[1617664039081,0.81413421,2102.0,2101.9,14.0596]
[1617664039280,0.81413421,2102.0,2101.9,13.7366]
[1617664039480,0.81413421,2102.0,2101.9,13.6098]
[1617664040482,1.46312506,2102.0,2101.9,13.6098]
[1617664040882,0.81413421,2102.0,2101.9,13.6098]
[1617664041485,0.81413421,2102.0,2101.9,11.5148]
[1617664041885,0.81413421,2102.0,2101.9,14.42175]
[1617664042288,0.81413421,2102.0,2101.9,11.5148]
[1617664042688,1.68108582,2102.0,2101.9,11.5148]
[1617664042889,0.81413421,2102.0,2101.9,11.5148]
[1617664043089,0.81413421,2102.0,2101.9,5.76]
[1617664043489,0.81413421,2102.0,2101.9,5.0586]
[1617664043490,1.89792427,2102.0,2101.9,5.0586]
[1617664044089,0.81413421,2102.0,2101.9,5.0586]
[1617664044492,2.71255645,2102.0,2101.9,5.0586]
[1617664044691,0.81413421,2102.0,2101.9,5.0586]
[1617664045290,2.7120939,2102.0,2101.9,3.9691]
[1617664045690,2.7120939,2102.0,2101.9,3.8226]
[1617664045892,2.7120939,2102.0,2101.9,3.2503]
[1617664046091,2.7120939,2102.0,2101.9,3.1207]
[1617664047392,7.63951453,2102.0,2101.9,3.1207]
[1617664048496,5.74155484,2102.0,2101.9,3.1207]
[1617664048996,5.74155484,2102.0,2101.9,2.4016]
[1617664049195,7.63970314,2102.0,2101.9,2.4016]
[1617664049594,7.63970314,2102.0,2101.9,1.6503]
[1617664049795,5.74155484,2102.0,2101.9,0.9334]
[1617664049994,5.74155484,2102.0,2101.9,0.8604]
[1617664050594,5.74155484,2102.0,2101.9,0.7231]
[1617664050894,5.74155484,2102.0,2101.1,2.90695]
[1617664051096,5.74155484,2102.0,2101.9,5.89]
[1617664051495,5.74155484,2102.0,2101.2,5.88]
[1617664051699,5.74155484,2102.0,2101.1,2.90695]
[1617664051902,3.02344363,2102.0,2101.9,5.71]
[1617664052099,0.86664303,2101.7,2101.5,2.90695]
[1617664052299,0.86664303,2101.7,2101.6,0.05]
[1617664052501,0.86664303,2101.7,2101.5,2.90695]
[1617664052905,0.86664303,2101.7,2101.6,5.7434]
[1617664053301,0.86664303,2101.7,2101.6,3.1544]
[1617664053302,0.939,2101.7,2101.6,3.1544]
[1617664054002,5.73029242,2101.7,2101.6,2.4511]
[1617664054405,4.64687739,2101.7,2101.6,2.4511]
[1617664055207,4.64687739,2101.7,2100.8,2.90695]
[1617664055408,64.2028,2100.9,2099.1,13.0704]
[1617664055609,66.3059,2100.9,2099.8,13.3986]
[1617664056010,0.6492255,2100.6,2100.1,2.90695]
[1617664056412,2.0,2100.7,2100.2,5.78]
[1617664056613,2.0,2100.7,2100.2,3.7548]
[1617664057814,2.64749588,2100.7,2100.2,3.7548]
[1617664058017,2.90695,2100.3,2100.2,3.7548]
[1617664058217,5.21665,2100.3,2100.2,3.7548]
[1617664058617,5.21665,2100.3,2100.2,3.5842]
[1617664059219,6.16285,2100.3,2100.2,3.4414]
[1617664059421,3.85315,2100.3,2100.2,2.7201]
[1617664061819,6.43265,2100.3,2099.1,13.0704]
[1617664062020,3.5257,2100.3,2099.2,2.90695]
[1617664062220,59.8976,2099.8,2099.2,2.90695]
[1617664062420,62.2311,2099.8,2099.2,5.76695]
[1617664063518,63.1828,2099.8,2099.2,5.76695]
[1617664064120,63.1828,2099.8,2099.6,2.90695]
[1617664064320,63.1828,2099.8,2099.2,2.86]
[1617664064520,62.2311,2099.8,2099.7,5.82]
[1617664064820,62.2311,2099.8,2099.2,5.71]
[1617664065221,62.2311,2099.8,2099.7,5.98]
[1617664065422,62.2311,2099.8,2099.2,5.79]
[1617664065822,62.2311,2099.8,2099.7,5.79]
[1617664066023,62.2311,2099.8,2099.6,2.90695]
[1617664066424,62.2311,2099.8,2099.7,5.95]
[1617664066626,62.2311,2099.8,2099.1,13.0704]
[1617664066928,62.2311,2099.8,2099.7,5.99]
[1617664067327,62.2311,2099.8,2099.2,5.8]
[1617664067527,62.2311,2099.8,2099.7,5.9]
[1617664067927,62.2311,2099.8,2099.2,5.93]
[1617664068130,62.2311,2099.8,2099.7,5.72]
[1617664068528,2.3335,2099.8,2099.6,2.90695]
[1617664068729,0.9462,2100.3,2099.7,5.89]
[1617664070128,0.9462,2100.3,2100.0,2.90695]
[1617664070528,0.9462,2100.3,2100.1,2.79]
[1617664070729,0.9462,2100.3,2100.1,2.4134]
[1617664070928,0.9462,2100.3,2100.1,1.9419]
[1617664072029,0.9462,2100.3,2100.1,1.3671]
[1617664072231,2.90695,2100.2,2100.1,1.3671]
[1617664075033,0.946,2100.5,2100.1,1.3671]
[1617664075233,73.1385,2100.6,2100.1,3.8776]
[1617664075432,0.9558,2100.9,2100.1,3.8776]
[1617664075834,0.9558,2100.9,2100.2,30.0]
[1617664076233,2.38589895,2100.9,2100.8,2.90695]
[1617664076433,2.38589895,2100.9,2100.8,4.90025]
[1617664076634,2.38589895,2100.9,2100.8,10.88025]
[1617664077035,1.43009895,2100.9,2100.8,10.88025]
[1617664077336,2.90695,2101.1,2100.8,10.88025]
[1617664078136,3.84945,2101.1,2100.8,10.88025]
[1617664078737,2.90695,2101.1,2100.8,10.88025]
[1617664079942,3.86895,2101.1,2100.8,10.88025]
[1617664080142,2.90695,2101.1,2100.8,10.88025]
[1617664084148,3.85505,2101.1,2100.8,10.88025]
[1617664085750,2.90695,2101.1,2100.8,8.88695]
[1617664086049,2.90695,2101.1,2100.8,5.98]
[1617664086249,2.90695,2101.1,2099.7,13.8706]
[1617664086250,2.90695,2101.1,2100.5,2.90695]
[1617664086449,74.7592,2100.8,2100.5,2.90695]
[1617664086650,74.7592,2100.8,2100.6,5.85]
[1617664087053,2.90695,2101.1,2100.6,5.85]
[1617664087452,2.90695,2101.1,2100.6,8.072]
[1617664088251,2.90695,2101.1,2101.0,2.90695]
[1617664088452,2.90695,2101.1,2101.0,8.77695]
[1617664092863,70.8322,2101.7,2101.0,8.77695]
[1617664093064,69.8944,2101.7,2101.0,8.77695]
[1617664093466,69.8944,2101.7,2101.0,38.77695]
[1617664093665,69.8944,2101.7,2101.1,2.0]
[1617664093867,69.8944,2101.7,2101.2,30.0]
[1617664094066,69.8944,2101.7,2101.3,2.0]
[1617664094368,69.8944,2101.7,2101.6,2.90695]
[1617664094570,69.8944,2101.7,2101.6,5.07145]
[1617664094771,69.8944,2101.7,2101.6,11.02145]
[1617664094969,2.90695,2102.2,2101.6,11.02145]
[1617664095169,77.3475,2101.9,2101.6,11.02145]
[1617664096370,2.90695,2101.8,2101.6,8.1145]
[1617664096770,77.3475,2101.9,2101.6,38.1145]
[1617664097173,0.64967657,2102.5,2101.6,38.1145]
[1617664097773,0.64967657,2102.5,2101.8,30.0]
[1617664097970,0.64967657,2102.5,2101.9,2.0]
[1617664098171,0.64967657,2102.5,2102.0,30.0]
[1617664098373,2.07851004,2102.6,2102.4,2.90695]
[1617664098573,66.61656122,2102.7,2102.5,5.91]
[1617664098772,0.64976122,2102.7,2102.5,5.91]
[1617664100374,2.90695,2102.6,2102.5,5.91]
[1617664112693,5e-05,2102.7,2102.5,35.91]
[1617664112893,5e-05,2102.7,2102.5,94.6605]
[1617664113094,5e-05,2102.7,2102.5,96.6605]
[1617664113297,5e-05,2102.7,2102.5,110.2043]
[1617664116501,15.0,2102.6,2102.5,110.2043]
[1617664117101,0.43635594,2104.1,2102.5,110.2043]
[1617664117806,0.4363445,2104.2,2102.5,110.2043]
[1617664118410,0.43638066,2104.3,2104.1,2.90695]
[1617664118603,0.43638066,2104.3,2104.2,2.0]
[1617664118805,0.43638066,2104.3,2104.2,7.95]
[1617664119205,3.34341836,2104.4,2104.2,7.95]
[1617664119605,2.90695,2104.4,2104.2,7.95]
[1617664120406,3.34327426,2104.4,2104.2,7.95]
[1617664120613,0.43632426,2104.4,2104.2,7.95]
[1617664120807,59.59621452,2104.5,2104.2,7.95]
[1617664121308,59.1598,2104.5,2104.2,7.95]
[1617664122511,59.1598,2104.5,2104.4,2.90695]
[1617664122910,59.1598,2104.5,2104.4,8.83695]
[1617664126414,59.1598,2104.5,2104.4,11.14725]
[1617664126614,59.1598,2104.5,2104.4,8.2403]
[1617664128315,59.1598,2104.5,2104.4,10.2403]
[1617664128516,59.1598,2104.5,2104.4,11.14725]
[1617664130623,59.1598,2104.5,2104.4,41.14725]
[1617664131123,59.1598,2104.5,2104.4,43.14725]
[1617664133525,59.1598,2104.5,2104.4,13.14725]
[1617664133725,59.1598,2104.5,2104.4,10.83695]
[1617664135727,59.1598,2104.5,2104.4,8.83695]
[1617664135927,3.85655,2104.9,2104.4,8.83695]
[1617664136127,2.90695,2104.9,2104.4,5.93]
[1617664136528,2.90695,2104.5,2103.8,2.90695]
[1617664136730,66.7931,2104.4,2103.4,2.0]
[1617664136928,66.7931,2104.4,2103.9,5.92]
[1617664137329,66.7931,2104.4,2103.4,37.91]
[1617664137529,66.7931,2104.4,2103.5,5.91]
[1617664137731,66.7931,2104.4,2104.0,5.84]
[1617664138131,66.7931,2104.4,2103.5,5.75]
[1617664138332,66.7931,2104.4,2104.1,5.71]
[1617664138531,2.90695,2104.2,2104.1,5.71]
[1617664138733,2.90695,2104.2,2103.8,2.90695]
[1617664138932,2.90695,2104.2,2103.9,5.95]
[1617664140035,2.90695,2104.2,2103.6,5.71]
[1617664140435,2.90695,2104.2,2104.0,5.73]
[1617664140835,3.85205,2104.2,2103.5,2.90695]
[1617664141037,3.85205,2104.2,2104.1,5.76]
[1617664141437,3.85205,2104.2,2103.5,2.90695]
[1617664141637,3.85205,2104.2,2103.7,5.9]
[1617664141837,3.85205,2104.2,2104.1,5.91]
[1617664142039,3.85205,2104.2,2103.3,2.72]
[1617664142437,3.85205,2104.2,2104.1,5.96]
[1617664142637,3.85205,2104.2,2103.3,5.96]
[1617664143038,3.85205,2104.2,2104.1,5.88]
[1617664143238,2.90695,2104.2,2103.7,2.1863]
[1617664143638,2.90695,2104.2,2104.1,5.79]
[1617664144039,2.90695,2104.2,2103.7,2.1863]
[1617664144238,2.90695,2104.2,2104.1,5.89]
[1617664144640,2.90695,2104.2,2103.9,2.90695]
[1617664144839,2.90695,2104.2,2104.1,5.9]
[1617664145238,2.90695,2104.2,2104.0,5.89]
[1617664145437,2.90695,2104.2,2104.1,5.84]
[1617664145840,2.90695,2104.2,2103.9,2.90695]
[1617664145841,2.90695,2104.2,2104.0,5.7]
[1617664146038,2.90695,2104.2,2104.1,5.7]
[1617664146437,2.90695,2104.2,2104.0,5.94]
[1617664146739,2.90695,2104.2,2104.1,5.93]
[1617664146939,2.90695,2104.2,2104.0,5.73]
[1617664147340,2.90695,2104.2,2104.1,5.91]
[1617664147741,2.90695,2104.2,2104.1,30.0]
[1617664147941,2.90695,2104.2,2104.1,35.92]
[1617664148942,2.90695,2104.2,2104.1,5.92]
[1617664149142,2.90695,2104.2,2103.9,2.90695]
[1617664149143,2.90695,2104.2,2104.0,5.73]
[1617664149544,2.90695,2104.2,2104.1,5.88]
[1617664149745,2.90695,2104.2,2104.0,5.95]
[1617664150143,6.13225,2104.2,2104.1,5.88]
[1617664150343,6.13225,2104.2,2103.4,5.93]
[1617664150542,6.13225,2104.2,2103.1,13.3064]
[1617664150543,74.7839,2103.6,2103.1,13.3064]
[1617664150743,2.90695,2103.3,2103.1,16.21335]
[1617664150944,2.90695,2103.3,2103.1,13.3064]
[1617664151144,2.90695,2103.3,2103.2,3.71]
[1617664154250,2.90695,2103.3,2103.2,1.7897]
[1617664156558,2.90695,2103.3,2103.1,11.6445]
[1617664156753,2.90695,2103.3,2102.1,2.90695]
[1617664156954,59.3882,2102.3,2102.1,6.67695]
[1617664157153,62.1431,2102.3,2102.1,6.04625]
[1617664158254,63.0999,2102.3,2102.1,3.77]
[1617664158653,2.90695,2102.2,2101.7,2.90695]
[1617664159055,2.90695,2102.2,2101.8,5.9]
[1617664160757,2.90695,2101.9,2101.8,5.9]
[1617664164265,2.90695,2101.9,2101.8,1.547]
[1617664164468,2.90695,2101.9,2101.8,0.0137]
[1617664165271,2.90695,2101.9,2101.5,56.8124]
[1617664165471,2.90695,2101.9,2101.6,5.91]
[1617664165872,2.90695,2101.9,2101.2,5.81]
[1617664166074,2.90695,2101.9,2101.7,5.99]
[1617664166472,2.90695,2101.9,2101.3,5.71]
[1617664166473,62.5089,2101.7,2101.3,5.71]
[1617664166672,2.90695,2101.4,2101.2,2.90695]
[1617664166873,5.24395,2101.4,2101.2,2.90695]
[1617664167272,5.24395,2101.4,2101.3,5.7]
[1617664168874,5.24395,2101.4,2101.3,4.273]
[1617664169774,5.24395,2101.4,2101.3,3.9563]
[1617664170975,5.24395,2101.4,2101.3,3.7183]
[1617664171175,5.24395,2101.4,2101.3,2.7639]
[1617664175381,5.24395,2101.4,2101.3,1.8096]
[1617664176581,5.24395,2101.4,2101.3,2.756]
[1617664176980,5.24395,2101.4,2101.3,1.8096]
[1617664179286,5.24395,2101.4,2101.3,1.7463]
[1617664179683,5.24395,2101.4,2101.3,1.6902]
[1617664180284,7.24395,2101.4,2101.3,1.6902]
[1617664180486,5.24395,2101.4,2101.3,1.6902]
[1617664181484,7.24395,2101.4,2100.0,13.4302]
[1617664181684,30.0,2101.3,2100.0,13.4302]
[1617664181885,7.24395,2101.4,2100.0,13.4302]
[1617664182286,7.24395,2101.4,2100.1,5.8]
[1617664182487,37.24395,2101.4,2100.1,5.8]
[1617664182687,89.8587,2101.2,2100.1,5.8]
[1617664182888,2.90695,2100.2,2100.1,5.8]
[1617664183089,5.66575,2100.2,2100.1,5.8]
[1617664184088,6.62345,2100.2,2100.1,5.591]
[1617664184290,6.62345,2100.2,2099.6,5.99]
[1617664184489,60.2449,2100.1,2099.6,5.99]
[1617664184688,60.2449,2100.1,2099.5,61.7901]
[1617664184890,2.90695,2099.6,2099.5,61.7901]
[1617664185090,5.22945,2099.6,2099.5,61.7901]
[1617664185291,5.22945,2099.6,2099.5,67.6101]
[1617664185491,5.22945,2099.6,2099.5,5.82]
[1617664186291,2.90695,2099.6,2099.5,5.82]
[1617664186691,64.6578,2100.8,2099.5,5.82]
[1617664186892,64.6578,2100.8,2100.2,2.90695]
[1617664187091,64.6578,2100.8,2099.9,2.0836]
[1617664187294,64.6578,2100.8,2100.3,5.89]
[1617664187494,62.6742,2100.8,2100.3,5.89]